[Event "88th Tata Steel Masters 2026"]
[White "Erigaisi Arjun"]
[Black "Praggnanandhaa R"]
[Site "Wijk aan Zee"]
[Round "1.7"]
[Annotator "TA"]
[Result "1-0"]
[Date "2026.01.17"]
[WhiteElo "2775"]
[BlackElo "2758"]
[PlyCount "63"]
[TimeControl "60"]

{[%evp 9,63,7,14,0,0,0,0,0,0,0,-8,-23,-8,-5,23,14,92,77,151,160,135,124,241,84,288,284,289,279,283,285,273,278,393,305,201,206,299,275,521,506,471,407,565,309,691,687,650,640,761,714,723,725,29987,29988,29988,29989]} 1. d4 {[%emt 0:0:0]} d5 {[%emt 0:0:0]} 2. c4 {[%emt 0:0:0]} dxc4 {[%emt 0:0:0]} 3. e4 {[%emt 0:0:0]} e5 {[%emt 0:0:0]} 4. Nf3 {[%emt 0:0:0]} exd4 {[%emt 0:0:0]} 5. Bxc4 {[%emt 0:0:0]} Nc6 {[%emt 0:0:0]} 6. Qb3 {[%emt 0:0:0][%mdl 1024] White has compensation. D20: Queen's Gambit Accepted: 3 e3 and 3 e4.} Bb4+ {[%emt 0:0:0]} 7. Nbd2 {[%emt 0:0:0]} Qf6 {[%emt 0:0:0]} 8. O-O {[%emt 0:0:0] The position is equal.} Nge7 {[%emt 0:0:0]} 9. e5 {[%emt 0:0:0]} Qg6 {[%emt 0:0:0]} 10. Nh4 {[%emt 0:0:0] is the legacy move (10.Bd3).} Qh5 {[%emt 0:3:44]} 11. Ndf3 {[%emt 0:0:0] White sacrificed a pawn} Ba5 $146 {[%emt 0:30:23]} ({Predecessor:} 11... a5 12. a3 a4 13. Qc2 Ba5 14. Qxa4 h6 15. b4 g5 16. bxa5 gxh4 17. Nxd4 Rg8 {½-½ Krzyzanowski,W (2457)-Schuster,P (2454) ICCF GMN/052 email 2016} )12. h3 $1 {[%emt 0:4:48]} d3 {[%emt 0:7:3]} (12... h6 $1 $11 )13. Qxd3 $16 {[%emt 0:23:6]} Nxe5 {[%emt 0:4:4]} (13... Ng6 $142 14. g4 Bxg4 15. hxg4 Qxg4+ 16. Ng2 Ngxe5 17. Nxe5 Nxe5 )14. Nxe5 {[%emt 0:0:50] A sharp opening} Qxe5 {[%emt 0:0:36]} 15. Nf3 {[%emt 0:0:40] White is more active.} Qd6 {[%emt 0:18:1]} (15... Qf5 $16 )16. Qb3 $2 {[%emt 0:5:40] [#]} (16. Qe2 $18 {and White stays clearly on top.} )Be6 $2 {[%emt 0:4:54] This costs Black the game.} (16... O-O $16 )17. Bxe6 $18 {[%emt 0:3:31]} (17. Qxb7 O-O 18. Bxe6 Qxe6 $14 )fxe6 {[%emt 0:1:55]} 18. Rd1 {[%emt 0:1:4]} ({Not} 18. Qxb7 O-O $16 )Qb6 {[%emt 0:7:59]} 19. Qa4+ {[%emt 0:0:57]} c6 {[%emt 0:0:48]} 20. Qe4 {[%emt 0:9:46]} Qb5 {[%emt 0:3:34] Inhibits Bg5.} (20... Rd8 $142 21. Bg5 Qc7 )21. Qxe6 {[%emt 0:5:20]} Qf5 {[%emt 0:0:42]} 22. Qe2 $40 {[%emt 0:1:13][%mdl 128] [#] Bg5 is the strong threat. White has strong attack.} Rf8 {[%emt 0:5:18]} (22... Qb5 {was worth a try.} 23. Qe6 Qf5 )23. Rd3 {[%emt 0:21:21]} Bb6 $2 {[%emt 0:14:22]} (23... Rf6 24. Bg5 Re6 )24. Bg5 {[%emt 0:3:23][%csl Gg5][%cal Re2e7]} Rf7 {[%emt 0:1:1]} 25. g4 {[%emt 0:18:16]} Qg6 {[%emt 0:2:26]} 26. Re1 {[%emt 0:2:33]} Bxf2+ $2 {[%emt 0:1:28]} (26... Rd8 27. Rxd8+ Bxd8 )27. Kxf2 {[%emt 0:0:34]} Qxg5 {[%emt 0:0:33]} 28. Kg2 {[%emt 0:0:34]} Qc5 {[%emt 0:2:54]} 29. Ne5 {[%emt 0:0:40][%cal Yf3e5,Ye5d7,Yd7f6][%mdl 32]} Rf4 {[%emt 0:0:41]} 30. Nd7 {[%emt 0:1:36]} Qg5 {[%emt 0:0:34]} 31. Qe6 {[%emt 0:0:43]} O-O-O {[%emt 0:1:48]} 32. Nf6+ {[%emt 0:0:49] Weighted Error Value: White=0.26 (precise) /Black=0.97   Loses game:     	---       	Black=1      Mistake:       	White=1     	Black=7      Inaccurate:     	White=1     	Black=2      OK:         	White=3     	Black=3      Strong:       	White=1     	---} 1-0

[Event "88th Tata Steel Masters 2026"]
[White "Bluebaum,Matthias"]
[Black "Niemann,Hans Moke"]
[Site "Wijk aan Zee"]
[Round "2.1"]
[Annotator "TA"]
[Result "1/2-1/2"]
[Date "2026.01.18"]
[WhiteElo "2679"]
[BlackElo "2725"]
[PlyCount "55"]
[TimeControl "60"]

{[%evp 11,55,31,35,26,31,-1,22,33,37,31,32,30,56,21,37,12,25,25,17,23,17,10,24,7,4,0,0,0,0,0,0,0,0,0,0,0,0,0,0,0,43,0,0,0,0,0]} 1. d4 {[%emt 0:0:0]} Nf6 {[%emt 0:0:0]} 2. c4 {[%emt 0:0:0]} e6 {[%emt 0:0:0]} 3. Nf3 {[%emt 0:0:0]} d5 {[%emt 0:0:0]} 4. Nc3 {[%emt 0:0:0]} c5 {[%emt 0:0:0]} 5. cxd5 {[%emt 0:0:0]} cxd4 {[%emt 0:0:0]} 6. Qxd4 {[%emt 0:0:0]} exd5 {[%emt 0:0:0]} 7. e4 {[%emt 0:0:0] 7.Bg5 is the modern continuation. D41: Queen's Gambit Declined: Semi-Tarrasch with 5 cxd5.} dxe4 {[%emt 0:0:0]} 8. Qxd8+ {[%emt 0:0:0]} Kxd8 {[%emt 0:0:0]} 9. Ng5 {[%emt 0:0:0][%csl Ye4,Yf7]} Be6 {[%emt 0:0:0]} 10. Nxe6+ {[%emt 0:0:0]} fxe6 {[%emt 0:0:0]} 11. Bg5 {[%emt 0:0:0]} Nc6 {[%emt 0:0:0]} 12. O-O-O+ {[%emt 0:0:0] White sacrificed a pawn} ({Reject} 12. Nxe4 Bb4+ 13. Nc3 Ke7 $11 )Ke8 {[%emt 0:0:0]} 13. Kb1 {[%emt 0:0:0]} Be7 {[%emt 0:5:22]} 14. Bb5 $146 {[%emt 0:0:0]} ({Predecessor:} 14. Bc4 Kf7 15. Bxf6 gxf6 16. Nxe4 Rhd8 17. f4 Nd4 18. Ng3 Rac8 19. Bd3 f5 20. Ne2 {0-1 Yilmaz,M (2629)-Wei,Y (2722) PRO League Prelim rapid 2023 (4.4)} )Kf7 {[%emt 0:1:37]} 15. Bxc6 {[%emt 0:0:0]} bxc6 {[%emt 0:0:37]} 16. Rd4 {[%emt 0:0:0][%cal Yd4c4]} h6 {[%emt 0:7:34]} 17. Be3 {[%emt 0:15:18]} Bc5 {[%emt 0:4:28]} 18. Rc4 {[%emt 0:1:9]} Bxe3 {[%emt 0:0:41]} 19. fxe3 {[%emt 0:0:33]} Rhd8 {[%emt 0:0:47]} 20. Rc1 {[%emt 0:6:1]} Rd3 {[%emt 0:4:8]} 21. Nxe4 {[%emt 0:3:10]} Rxe3 {[%emt 0:1:29]} 22. Nd6+ {[%emt 0:4:49]} Kg6 {[%emt 0:1:13]} 23. Rxc6 {[%emt 0:0:40]} Rd8 {[%emt 0:1:8]} 24. Ra6 {[%emt 0:9:4]} Re2 {[%emt 0:3:11]} 25. Rc2 {[%emt 0:2:24]} Re1+ {[%emt 0:0:43]} 26. Rc1 {[%emt 0:0:34]} Re2 {[%emt 0:0:43]} 27. Rc2 {[%emt 0:1:9]} Re1+ {[%emt 0:0:45]} 28. Rc1 {[%emt 0:0:34] Weighted Error Value: White=0.05 (flawless) /Black=0.03 (flawless)   Inaccurate:     	White=1     	Black=1      OK:         	White=7     	Black=6} 1/2-1/2

[Event "88th Tata Steel Masters 2026"]
[White "Giri,Anish"]
[Black "Sindarov,Javokhir"]
[Site "Wijk aan Zee"]
[Round "2.2"]
[Annotator "TA"]
[Result "1/2-1/2"]
[Date "2026.01.18"]
[WhiteElo "2760"]
[BlackElo "2726"]
[PlyCount "88"]
[TimeControl "60"]

{[%evp 10,88,10,12,15,6,25,19,29,14,25,16,17,6,18,18,27,23,22,11,23,9,9,9,9,10,10,0,0,0,0,0,0,5,0,-104,-104,-106,6,15,10,0,0,0,0,0,0,0,0,0,0,0,0,0,0,0,0,0,0,0,2,0,0,0,0,0,0,-25,-25,-1275,-1214,-1464,-1453,-1403,0,0,0,0,0,0,0]} 1. c4 {[%emt 0:0:0]} e6 {[%emt 0:0:0]} 2. g3 {[%emt 0:0:0]} d5 {[%emt 0:0:0]} 3. Bg2 {[%emt 0:0:0]} Nf6 {[%emt 0:0:0]} 4. Nf3 {[%emt 0:0:0]} d4 {[%emt 0:0:0]} 5. d3 {[%emt 0:0:0]} Nc6 {[%emt 0:0:0]} 6. O-O {[%emt 0:0:0]} Bc5 {[%emt 0:0:0] A13: English Opening: 1...e6.} 7. Nbd2 {[%emt 0:0:0]} O-O {[%emt 0:0:0]} 8. Nb3 {[%emt 0:0:0]} Be7 {[%emt 0:0:0]} 9. e3 {[%emt 0:0:0]} dxe3 {[%emt 0:0:0]} 10. Bxe3 {[%emt 0:0:0]} Ng4 {[%emt 0:0:0]} 11. Bc5 {[%emt 0:0:0]} Bxc5 {[%emt 0:0:0]} 12. Nxc5 {[%emt 0:0:0]} b6 {[%emt 0:0:0]} 13. Nb3 {[%emt 0:8:21] and Nh4 would now be decisive} Bb7 {[%emt 0:0:0]} 14. d4 {[%emt 0:0:39]} Ne7 {[%emt 0:0:0]} 15. Qd3 $146 {[%emt 0:6:24]} ({Predecessor:} 15. Qe2 Nf6 16. Rad1 Bxf3 17. Qxf3 c6 18. Qc3 Qc7 19. Nd2 Rfd8 20. Nf3 Rd6 21. Rd3 {½-½ Mchedlishvili,M (2564)-Gledura,B (2633) EU-chT 24th Budva 2023 (3.11)} )Nf6 {[%emt 0:0:2]} 16. Rad1 {[%emt 0:2:57]} Qd6 {[%emt 0:3:33]} 17. Rfe1 {[%emt 0:4:41]} Rad8 {[%emt 0:2:31]} 18. a3 {[%emt 0:5:11]} Bxf3 {[%emt 0:2:28]} 19. Bxf3 {[%emt 0:0:58]} c6 {[%emt 0:0:45]} 20. Qc3 {[%emt 0:6:10]} Rd7 {[%emt 0:4:11]} 21. Nc1 {[%emt 0:4:13][%cal Yb3c1,Yc1e2,Ye2d4][%mdl 32]} Nf5 {[%emt 0:12:4]} 22. b4 {[%emt 0:7:43]} (22. Nd3 $11 )Nxd4 $17 {[%emt 0:3:1]} 23. Bxc6 {[%emt 0:2:40] [#]} Ne2+ $1 {[%emt 0:1:28][%mdl 512]} 24. Nxe2 $11 {[%emt 0:1:18]} Qxc6 {[%emt 0:0:31]} 25. Nd4 {[%emt 0:7:0]} Qa4 {[%emt 0:11:54]} 26. Qb3 {[%emt 0:5:2]} Qxb3 {[%emt 0:1:0]} 27. Nxb3 {[%emt 0:0:34]} Rfd8 {[%emt 0:2:12]} 28. Rxd7 {[%emt 0:0:51]} Rxd7 {[%emt 0:0:34][%mdl 4096] Endgame KRN-KRN} 29. Re2 {[%emt 0:0:50]} Kf8 {[%emt 0:2:2]} 30. Rd2 {[%emt 0:0:57]} Rxd2 {[%emt 0:2:12]} 31. Nxd2 {[%emt 0:0:39] KN-KN} e5 {[%emt 0:0:38]} 32. Kf1 {[%emt 0:11:42]} Ke7 {[%emt 0:0:52]} 33. Ke2 {[%emt 0:0:52]} Ke6 {[%emt 0:1:27]} 34. f3 {[%emt 0:2:30]} h5 {[%emt 0:2:48]} 35. Kd3 {[%emt 0:3:59]} g5 {[%emt 0:9:42][%cal Yg7g5,Yg5g4][%mdl 32]} 36. Ne4 {[%emt 0:18:54]} g4 {[%emt 0:3:25]} 37. Nxf6 {[%emt 0:0:42]} Kxf6 {[%emt 0:0:40] KP-KP} 38. Ke3 {[%emt 0:1:6]} Kf5 {[%emt 0:36:23]} 39. c5 $2 {[%emt 0:2:31][%mdl 8192]} (39. Ke2 $11 )bxc5 $19 {[%emt 0:0:45]} 40. bxc5 {[%emt 0:0:0]} Ke6 {[%emt 0:0:0]} 41. f4 {[%emt 0:24:5] [#]} a5 $2 {[%emt 0:20:12]} (41... f6 $1 $19 42. Ke4 f5+ 43. Ke3 a5 44. fxe5 Kxe5 )42. c6 $1 $11 {[%emt 0:4:35] The position is equal.} f6 {[%emt 0:1:11] and ...Kd6 would now be decisive} 43. fxe5 {[%emt 0:5:18]} (43. c7 $5 Kd7 $8 44. fxe5 fxe5 45. Ke4 Kxc7 46. Kxe5 $11 )fxe5 {[%emt 0:0:19]} 44. Ke4 {[%emt 0:0:30]} (44. c7 $5 Kd7 $8 45. Ke4 Kxc7 46. Kxe5 $11 )Kd6 {[%emt 0:0:4] Weighted Error Value: White=0.34/Black=0.18 (very precise)   Loses game:     	White=1     	---        Mistake:       	White=1     	Black=1      OK:         	White=9     	Black=10} 1/2-1/2

[Event "88th Tata Steel Masters 2026"]
[White "Gukesh D"]
[Black "Van Foreest,Jorden"]
[Site "Wijk aan Zee"]
[Round "2.3"]
[Annotator "TA"]
[Result "1/2-1/2"]
[Date "2026.01.18"]
[WhiteElo "2754"]
[BlackElo "2703"]
[PlyCount "66"]
[TimeControl "60"]

{[%evp 9,66,6,8,0,-11,0,8,22,21,21,22,20,34,18,20,37,40,28,16,0,0,0,0,0,0,0,0,-43,-52,-42,0,0,0,0,0,0,0,0,0,0,0,0,0,0,0,0,0,0,0,0,0,0,0,0,0,0,0,0,0]} 1. d4 {[%emt 0:0:0]} Nf6 {[%emt 0:0:0]} 2. c4 {[%emt 0:0:0]} g6 {[%emt 0:0:0]} 3. h4 {[%emt 0:0:0]} Bg7 {[%emt 0:0:0]} 4. Nc3 {[%emt 0:0:0]} d6 {[%emt 0:0:0]} 5. e4 {[%emt 0:0:0]} c5 {[%emt 0:0:0]} 6. dxc5 {[%emt 0:0:0] E60: King's Indian: Unusual lines and Fianchetto Variation without Nc3.} Qa5 {[%emt 0:0:0]} 7. Bd2 {[%emt 0:0:0]} Qxc5 {[%emt 0:0:0]} 8. Be2 {[%emt 0:0:0]} h5 {[%emt 0:0:0]} 9. Nf3 {[%emt 0:0:0]} Bg4 {[%emt 0:1:50]} 10. O-O $146 {[%emt 0:2:32]} ({Predecessor:} 10. b4 Qc8 11. Qa4+ Nbd7 12. Rc1 O-O 13. O-O Nb6 14. Qb3 Be6 15. Nd5 Qd7 16. Bd3 {½-½ Zhang,C (1521)-Malcolm,A (1538) North Island-ch Staurt Memorial 2023 (5)} )O-O {[%emt 0:5:15]} 11. Rc1 {[%emt 0:0:37]} Bxf3 {[%emt 0:8:35]} 12. Bxf3 {[%emt 0:1:31]} Nc6 {[%emt 0:1:25]} 13. Nd5 {[%emt 0:7:41]} Qd4 {[%emt 0:7:10][%csl Yb2,Ye4]} 14. Bg5 {[%emt 0:15:27]} Qxb2 {[%emt 0:4:33]} 15. Rb1 {[%emt 0:4:11] White sacrificed a pawn} Qxa2 {[%emt 0:2:52]} 16. Rxb7 {[%emt 0:0:35]} Qa6 {[%emt 0:7:52]} 17. Qb1 {[%emt 0:7:47]} Nxd5 {[%emt 0:1:44]} 18. cxd5 {[%emt 0:9:42]} (18. exd5 $5 Nd4 19. c5 $15 )Nd4 {[%emt 0:0:45]} 19. Bxe7 {[%emt 0:15:7]} Rfe8 {[%emt 0:1:4]} 20. Bg5 {[%emt 0:6:27] The position is equal.} Qa3 {[%emt 0:3:0]} 21. Be3 {[%emt 0:3:59]} a5 {[%emt 0:2:1]} 22. Rc1 {[%emt 0:6:17] Against Qc3} Rec8 {[%emt 0:4:1]} 23. Rxc8+ {[%emt 0:14:46]} Rxc8 {[%emt 0:0:43]} 24. Rxf7 {[%emt 0:2:40]} Kxf7 {[%emt 0:0:59]} 25. Qb7+ {[%emt 0:0:32]} Kg8 {[%emt 0:0:39]} 26. Qxc8+ {[%emt 0:0:35]} Kh7 {[%emt 0:0:35]} 27. Bxh5 {[%emt 0:5:19]} Qa1+ {[%emt 0:3:48]} 28. Kh2 {[%emt 0:0:34]} gxh5 {[%emt 0:0:35]} 29. Bxd4 {[%emt 0:0:33]} Qxd4 {[%emt 0:1:32]} 30. Qf5+ {[%emt 0:0:34]} Kg8 {[%emt 0:0:37]} (30... Kh8 $5 31. Qc8+ $8 (31. Qxh5+ Kg8 $17 )Kh7 32. Qf5+ Kh6 33. Qf4+ Kh7 34. Qf5+ $11 )31. Qe6+ {[%emt 0:0:34]} Kh7 {[%emt 0:0:52]} 32. Qf5+ {[%emt 0:0:34]} Kg8 {[%emt 0:0:38]} 33. Qe6+ {[%emt 0:0:32]} Kh7 {[%emt 0:0:43] Weighted Error Value: White=0.04 (flawless) /Black=0.03 (flawless)   Inaccurate:     	White=1     	Black=1      OK:         	White=8     	Black=10     Best:        	White=4     	---} 1/2-1/2

[Event "88th Tata Steel Masters 2026"]
[White "Abdusattorov,Nodirbek"]
[Black "Praggnanandhaa R"]
[Site "Wijk aan Zee"]
[Round "2.4"]
[Annotator "TA"]
[Result "1-0"]
[Date "2026.01.18"]
[WhiteElo "2751"]
[BlackElo "2758"]
[PlyCount "119"]
[TimeControl "60"]

{[%evp 9,118,21,15,19,15,16,19,17,25,27,27,17,27,5,10,0,0,6,12,0,0,0,0,0,0,0,18,6,32,31,31,31,41,5,18,20,25,9,9,9,9,12,18,11,11,11,39,39,112,11,16,26,17,10,103,101,101,101,91,102,110,72,72,77,73,73,73,73,89,73,71,74,80,79,72,72,141,141,141,141,145,141,139,143,177,170,422,443,441,428,440,440,409,422,602,530,730,576,622,632,813,813,738,707,1015,1006,1224,667,29973,29975,29972]} 1. d4 {[%emt 0:0:0]} d5 {[%emt 0:0:0]} 2. c4 {[%emt 0:0:0]} e6 {[%emt 0:0:0]} 3. Nf3 {[%emt 0:0:0]} Nf6 {[%emt 0:0:0]} 4. Nc3 {[%emt 0:0:0]} h6 {[%emt 0:0:0]} 5. cxd5 {[%emt 0:0:0]} exd5 {[%emt 0:0:0]} 6. Bf4 {[%emt 0:0:0] D35: Queen's Gambit Declined: Exchange Variation.} Bd6 {[%emt 0:0:0]} 7. Bxd6 {[%emt 0:0:0]} Qxd6 {[%emt 0:0:0]} 8. e3 {[%emt 0:0:0] The position is equal.} Bf5 {[%emt 0:0:0]} 9. Nh4 $5 {[%emt 0:0:0][%mdl 4] Exploring less charted territory.} Bh7 {[%emt 0:0:0]} 10. Bd3 {[%emt 0:0:0]} O-O {[%emt 0:0:0]} 11. Bxh7+ {[%emt 0:0:0]} Kxh7 {[%emt 0:0:0]} 12. Qb3 $146 {[%emt 0:4:6]} ({Predecessor:} 12. Qc2+ g6 13. Nf3 Nbd7 14. O-O c6 15. Rab1 a5 16. a3 Kg7 17. Rfc1 h5 18. h3 {1-0 Vantika,A (2369)-Harish,N (2107) Sant Boi de Llobregat op 6th 2025 (7)} )Nbd7 {[%emt 0:17:33]} 13. O-O {[%emt 0:0:47][%cal Ya1c1]} (13. Qxb7 $2 Rfb8 14. Nf5 Rxb7 $19 )Rab8 {[%emt 0:3:7]} 14. a4 {[%emt 0:2:35][%cal Ya2a4,Ya4a5,Ya5a6][%mdl 32]} c6 {[%emt 0:2:1] Inhibits Nb5.} 15. a5 {[%emt 0:1:31]} g6 {[%emt 0:1:0]} 16. Nf3 {[%emt 0:4:8]} Kg7 {[%emt 0:0:47]} 17. Qa3 {[%emt 0:17:35]} Ne8 {[%emt 0:10:7]} 18. a6 {[%emt 0:7:59]} b5 {[%emt 0:6:7] [#] aiming for ...b4.} 19. Qxd6 {[%emt 0:5:29]} Nxd6 {[%emt 0:0:35]} 20. Rfc1 {[%emt 0:6:5]} Rfc8 {[%emt 0:6:9]} 21. b3 {[%emt 0:3:25]} b4 {[%emt 0:17:50]} 22. Na4 {[%emt 0:0:38]} Rb5 {[%emt 0:0:45]} 23. Ne1 {[%emt 0:16:13]} c5 {[%emt 0:2:49]} 24. dxc5 {[%emt 0:0:56]} Nxc5 {[%emt 0:0:44]} 25. Nxc5 {[%emt 0:2:53]} Rcxc5 {[%emt 0:0:45]} 26. Rxc5 {[%emt 0:0:39]} Rxc5 $11 {[%emt 0:0:35][%mdl 4096] Endgame KRN-KRN} 27. Nd3 {[%emt 0:0:39][%csl Yb4,Yc5]} Rb5 {[%emt 0:9:48]} 28. f3 {[%emt 0:4:52]} Nc4 {[%emt 0:8:4]} 29. Kf2 {[%emt 0:2:20]} (29. bxc4 dxc4 30. Nc1 (30. Nb2 c3 $17 )b3 )({White should try} 29. Rc1 $16 Nd2 (29... Nxe3 $2 30. Rc7 $18 )30. Rc7 Nxb3 31. Rb7 (31. Rxa7 $2 Nc5 $18 ))Na5 {[%emt 0:2:10]} 30. Rc1 {[%emt 0:1:59]} Nxb3 {[%emt 0:12:33]} 31. Rc7 {[%emt 0:0:37][%cal Yc7b7]} d4 {[%emt 0:1:3]} (31... Nd2 $11 {keeps the balance.} )32. Rxa7 $16 {[%emt 0:6:50] White is more active.} Nc5 {[%emt 0:7:17] Wards off Rb7} 33. Nxc5 {[%emt 0:0:37]} Rxc5 {[%emt 0:0:37]} 34. exd4 {[%emt 0:0:37] KR-KR. White is a pawn up.} Rc6 {[%emt 0:1:31]} 35. Ra8 {[%emt 0:9:25]} Kf6 {[%emt 0:0:43]} 36. Ke3 {[%emt 0:4:44]} b3 {[%emt 0:0:35]} 37. a7 {[%emt 0:0:47]} Rc7 {[%emt 0:0:39]} 38. h4 {[%emt 0:1:38]} h5 {[%emt 0:3:9]} 39. Ke4 {[%emt 0:2:33]} Rb7 {[%emt 0:0:49]} 40. Rb8 {[%emt 0:0:0]} Rxa7 {[%emt 0:0:0]} 41. Rxb3 {[%emt 0:21:21]} Ra2 {[%emt 0:27:58]} 42. g3 {[%emt 0:4:58]} Rg2 {[%emt 0:1:17]} (42... Ke6 $142 )43. f4 {[%emt 0:12:47]} Ke6 {[%emt 0:6:17]} 44. d5+ {[%emt 0:0:29]} Kd6 {[%emt 0:4:18]} 45. Rb6+ {[%emt 0:1:36]} Ke7 {[%emt 0:0:6]} 46. Rb7+ {[%emt 0:0:8]} Kf6 {[%emt 0:1:50]} 47. Rb3 {[%emt 0:0:17]} Ke7 $2 {[%emt 0:3:27]} (47... Ra2 {is a better defense.} )48. f5 $18 {[%emt 0:0:45]} gxf5+ {[%emt 0:3:38]} 49. Kxf5 {[%emt 0:2:45]} Rd2 {[%emt 0:2:4]} 50. Re3+ {[%emt 0:3:13]} Kf8 {[%emt 0:1:40]} 51. Re5 {[%emt 0:2:23]} Rd4 {[%emt 0:1:36]} (51... Kg7 $142 52. Ke4 Ra2 53. Rxh5 Kg6 54. Rg5+ Kf6 55. Rf5+ Ke7 )52. Kf6 {[%emt 0:1:46]} Rd3 {[%emt 0:0:9]} 53. Rxh5 {[%emt 0:2:10][%cal Rh5h8] [#]} Rf3+ {[%emt 0:0:5]} 54. Ke5 {[%emt 0:0:36]} Rxg3 {[%emt 0:0:23]} 55. Kd6 {[%emt 0:0:22]} Ra3 {[%emt 0:0:26]} 56. Re5 {[%emt 0:0:32]} f6 {[%emt 0:1:20]} 57. Re1 {[%emt 0:2:24]} Rh3 {[%emt 0:1:21]} 58. Kc6 {[%emt 0:2:34]} Rxh4 {[%emt 0:0:13]} 59. d6 {[%emt 0:0:3]} Rc4+ {[%emt 0:0:10]} 60. Kd5 {[%emt 0:1:25] Weighted Error Value: White=0.07 (flawless) /Black=0.46   Mistake:       	White=1     	Black=5      Inaccurate:     	White=2     	Black=3      OK:         	White=10    	Black=5} 1-0

[Event "88th Tata Steel Masters 2026"]
[White "Nguyen,Thai Dai Van"]
[Black "Erigaisi Arjun"]
[Site "Wijk aan Zee"]
[Round "2.5"]
[Annotator "TA"]
[Result "1/2-1/2"]
[Date "2026.01.18"]
[WhiteElo "2656"]
[BlackElo "2775"]
[PlyCount "112"]
[TimeControl "60"]

{[%evp 9,112,19,21,-2,4,-12,12,36,27,27,36,42,28,33,33,33,33,41,41,19,29,37,58,52,52,48,43,46,40,0,37,0,28,27,28,43,32,23,21,19,50,19,56,26,7,0,10,19,9,26,7,0,52,7,7,12,27,17,9,10,14,15,18,16,25,24,25,18,40,27,27,27,41,41,53,63,60,41,45,30,33,0,9,31,22,0,0,0,13,0,0,-2,0,0,0,0,0,0,0,0,0,0,0,0,0]} 1. d4 {[%emt 0:0:0]} Nf6 {[%emt 0:0:0]} 2. c4 {[%emt 0:0:0]} e6 {[%emt 0:0:0]} 3. Nf3 {[%emt 0:0:0]} d5 {[%emt 0:0:0]} 4. Nc3 {[%emt 0:0:0]} dxc4 {[%emt 0:0:0]} 5. e4 {[%emt 0:0:0]} Bb4 {[%emt 0:0:0]} 6. Bxc4 {[%emt 0:0:0] D24: Queen's Gambit Accepted: 3 Nf3 Nf6 4 Nc3.} Nxe4 {[%emt 0:0:0]} 7. O-O {[%emt 0:0:0]} Nf6 {[%emt 0:0:0]} (7... Nxc3 {simplifies} 8. bxc3 Be7 9. Qd3 c5 )8. Qa4+ {[%emt 0:0:0]} Nc6 {[%emt 0:0:0]} 9. Ne5 {[%emt 0:0:0] White sacrificed a pawn} a5 {[%emt 0:0:0][%cal Yc8d7] 9...Bd6 is the modern continuation.} 10. Nxc6 {[%emt 0:0:0]} bxc6 {[%emt 0:0:0]} 11. Qxc6+ {[%emt 0:0:0]} Bd7 {[%emt 0:0:0]} 12. Qf3 {[%emt 0:0:0]} O-O {[%emt 0:0:0]} 13. Bf4 {[%emt 0:0:0]} Rb8 {[%emt 0:0:0]} 14. Be5 {[%emt 0:13:56]} Bd6 {[%emt 0:0:28]} 15. b3 {[%emt 0:2:48]} Rb6 {[%emt 0:1:15]} 16. Rad1 {[%emt 0:1:33]} Bc6 {[%emt 0:2:6]} 17. Qg3 {[%emt 0:2:2]} Nh5 {[%emt 0:28:3]} 18. Qg4 $146 {[%emt 0:8:33]} ({Predecessor:} 18. Qe3 Nf6 19. Rfe1 Nd5 20. Qg3 f6 21. Bxd6 Qxd6 22. Qxd6 cxd6 23. Na4 Bxa4 24. bxa4 Rb4 25. Bb3 Kf7 26. Rc1 {½-½ Zhai,M (2371)-Song,Y (2311) CHN-ch (Women) 2022 (3)} )Nf6 {[%emt 0:0:45]} 19. Qg3 {[%emt 0:1:46]} Nh5 {[%emt 0:0:36]} 20. Qg4 {[%emt 0:20:0]} Nf6 {[%emt 0:0:47]} 21. Qh3 {[%emt 0:0:39]} Bxe5 {[%emt 0:6:32]} 22. dxe5 {[%emt 0:1:24]} Nd7 $1 {[%emt 0:0:34]} 23. Qg3 {[%emt 0:24:58]} Qe7 {[%emt 0:2:14]} 24. Rfe1 {[%emt 0:0:39]} Qc5 {[%emt 0:10:28]} 25. h4 {[%emt 0:3:13][%cal Yh2h4,Yh4h5][%mdl 32]} Rbb8 {[%emt 0:3:1]} 26. h5 {[%emt 0:3:2]} h6 {[%emt 0:0:49]} 27. Rd3 {[%emt 0:12:20]} Nb6 {[%emt 0:8:53]} 28. Qg4 {[%emt 0:3:8] [#] Rg3 would now be deadly.} Kh8 {[%emt 0:0:50]} 29. Rg3 {[%emt 0:0:38][%csl Gg3][%cal Rg4g7]} Rg8 {[%emt 0:0:36]} 30. Bf1 {[%emt 0:1:54]} Nc8 {[%emt 0:16:39]} ({Black should play} 30... Rbd8 $11 )31. Qc4 {[%emt 0:2:42]} Qxc4 {[%emt 0:1:38]} 32. Bxc4 {[%emt 0:0:35]} Rd8 {[%emt 0:0:36]} 33. Rc1 {[%emt 0:3:54]} Ne7 {[%emt 0:2:21]} 34. Rd3 {[%emt 0:0:54]} Rxd3 {[%emt 0:2:43]} 35. Bxd3 {[%emt 0:0:31]} Kg8 {[%emt 0:0:32]} 36. f4 {[%emt 0:2:21]} Rb4 {[%emt 0:2:21]} 37. Ne2 {[%emt 0:1:33]} Kf8 {[%emt 0:5:54]} 38. Kf2 {[%emt 0:0:34]} Ke8 {[%emt 0:1:58]} 39. g3 {[%emt 0:1:36]} Kd7 {[%emt 0:1:7]} 40. Nc3 {[%emt 0:0:0]} Kc8 {[%emt 0:0:0]} 41. Ba6+ {[%emt 0:25:7]} Kb8 {[%emt 0:25:12]} 42. Bc4 {[%emt 0:2:59]} Ka7 {[%emt 0:1:30]} 43. Rd1 {[%emt 0:4:15]} Rb8 {[%emt 0:0:19]} 44. Be2 {[%emt 0:6:23]} Nd5 {[%emt 0:2:34]} 45. Rc1 {[%emt 0:0:24]} Nxc3 {[%emt 0:4:45]} 46. Rxc3 $11 {[%emt 0:0:2][%mdl 4096] Endgame KRB-KRB} Kb6 {[%emt 0:0:2]} 47. Ke3 {[%emt 0:2:48] The position is equal.} Bd5 {[%emt 0:0:44]} 48. g4 {[%emt 0:0:48]} c5 {[%emt 0:1:13]} 49. f5 {[%emt 0:4:46]} Kc6 {[%emt 0:0:30]} 50. Kf4 {[%emt 0:1:14]} exf5 {[%emt 0:5:50]} 51. gxf5 {[%emt 0:0:6]} a4 {[%emt 0:0:4]} 52. Bc4 {[%emt 0:1:59]} Bxc4 {[%emt 0:0:8]} 53. bxc4 {[%emt 0:0:46]} Rb2 {[%emt 0:1:13]} 54. Ra3 {[%emt 0:1:46]} Rb4 {[%emt 0:1:7]} 55. Rc3 {[%emt 0:0:4]} Rb2 {[%emt 0:0:4]} 56. Ra3 {[%emt 0:0:16]} Rb4 {[%emt 0:0:5] Weighted Error Value: White=0.09 (flawless) /Black=0.06 (flawless)   Mistake:       	---       	Black=1      Inaccurate:     	White=4     	Black=2      OK:         	White=6     	Black=13     Best:        	---       	Black=2      Strong:       	---       	Black=1} 1/2-1/2